bitfinex/quotes_BTCUSD_20240613
["timestamp","ask_amount","ask_price","bid_price","bid_amount"]
[1718249832612,0.00674634,67292.0,67279.0,0.047486]
[1718249832613,0.00674634,67292.0,67287.0,0.01]
[1718249832875,0.1535,67295.0,67290.0,0.01]
[1718249833098,0.1535,67295.0,67279.0,0.047486]
[1718249833099,0.00674634,67291.0,67287.0,0.01]
[1718249833310,0.000452,67297.0,67291.0,0.01]
[1718249833515,0.000452,67297.0,67283.0,0.1]
[1718249833516,0.64943968,67292.0,67279.0,0.00186]
[1718249833765,0.44623189,67280.0,67279.0,0.00186]
[1718249833987,0.30191196,67280.0,67279.0,0.00086]
[1718249834410,0.30145996,67280.0,67279.0,0.00086]
[1718249834852,0.30391196,67280.0,67279.0,0.00086]
[1718249835079,0.45623189,67280.0,67279.0,0.00086]
[1718249835295,0.47923189,67280.0,67279.0,0.00086]
[1718249835525,0.47723189,67280.0,67279.0,0.00086]
[1718249835743,0.49923189,67280.0,67279.0,0.00086]
[1718249835959,0.50923189,67280.0,67279.0,0.00086]
[1718249836204,0.49923189,67280.0,67279.0,0.00086]
[1718249836423,0.50601517,67280.0,67279.0,0.00086]
[1718249836658,0.51601517,67280.0,67279.0,0.00086]
[1718249836871,0.61601517,67280.0,67279.0,0.00086]
[1718249838235,0.61601517,67280.0,67253.0,0.00137674]
[1718249838236,0.000452,67256.0,67255.0,5.2504]
[1718249838474,0.000452,67256.0,67255.0,4.6093]
[1718249838475,0.66363189,67256.0,67255.0,4.6093]
[1718249838680,1.0444111,67256.0,67255.0,4.6093]
[1718249838889,0.99207689,67256.0,67255.0,4.6093]
[1718249839089,1.10252889,67256.0,67255.0,4.6093]
[1718249839315,1.10252889,67256.0,67255.0,2.82604511]
[1718249839316,1.81980603,67256.0,67255.0,2.82604511]
[1718249839548,2.2074473,67256.0,67255.0,2.40482183]
[1718249839754,2.2371473,67256.0,67255.0,2.40482183]
[1718249839977,2.80563059,67256.0,67255.0,2.01327867]
[1718249840199,2.3550686,67256.0,67255.0,0.93881557]
[1718249840490,2.3550686,67256.0,67211.0,0.44152979]
[1718249840491,0.060452,67212.0,67211.0,0.00857]
[1718249840693,0.45333258,67212.0,67211.0,0.00857]
[1718249840906,0.45333258,67212.0,67161.0,0.1]
[1718249840907,0.346852,67202.0,67164.0,0.01]
[1718249841111,0.34431627,67202.0,67175.0,0.1803]
[1718249841316,0.24053897,67202.0,67181.0,0.1903]
[1718249841545,0.24053897,67202.0,67188.0,0.1808]
[1718249841546,0.12835528,67202.0,67188.0,0.1808]
[1718249841744,0.14477193,67202.0,67188.0,0.1808]
[1718249841948,0.000452,67210.0,67195.0,0.1803]
[1718249842146,0.07215996,67228.0,67188.0,0.0105]
[1718249842147,0.014452,67212.0,67201.0,1.1883509]
[1718249842453,0.014452,67212.0,67201.0,1.0080509]
[1718249842454,0.12261196,67202.0,67201.0,1.0080509]
[1718249842672,0.07215996,67210.0,67201.0,1.0080509]
[1718249842673,0.000452,67206.0,67201.0,1.0080509]
[1718249842939,0.00413527,67206.0,67201.0,1.0080509]
[1718249843163,0.00495386,67205.0,67201.0,1.0080509]
[1718249843385,0.00413527,67204.0,67201.0,1.0080509]
[1718249843625,0.07215996,67202.0,67201.0,1.0080509]
[1718249843852,0.24406716,67202.0,67201.0,1.0080509]
[1718249844140,0.01850199,67202.0,67201.0,1.0080509]
[1718249844347,0.14927392,67202.0,67201.0,1.0080509]
[1718249844567,0.30988034,67202.0,67201.0,1.0080509]
[1718249844768,0.37688034,67202.0,67201.0,1.0080509]
[1718249845212,0.39088034,67202.0,67201.0,1.0080509]
[1718249845427,0.40488034,67202.0,67201.0,1.0080509]
[1718249845640,0.40088034,67202.0,67201.0,1.0080509]
[1718249845847,0.40988034,67202.0,67201.0,1.0080509]
[1718249846054,0.42388034,67202.0,67201.0,1.0080509]
[1718249846262,0.41388034,67202.0,67201.0,1.0080509]
[1718249846771,0.40988034,67202.0,67201.0,1.0080509]
[1718249846996,0.42388034,67202.0,67201.0,1.0080509]
[1718249847500,0.01752875,67208.0,67201.0,1.33267083]
[1718249847714,0.03996882,67229.0,67201.0,1.33267083]
[1718249847715,0.01752875,67219.0,67205.0,0.0899]
[1718249847962,0.45048854,67227.0,67219.0,0.01]
[1718249848200,0.07223996,67242.0,67218.0,0.1803]
[1718249848201,0.000452,67234.0,67218.0,0.1803]
[1718249848428,0.000452,67234.0,67226.0,0.1803]
[1718249848659,0.000452,67239.0,67226.0,0.1903]
[1718249848891,0.000452,67236.0,67226.0,0.1803]
[1718249849110,0.01,67247.0,67233.0,0.1803]
[1718249849111,0.000452,67247.0,67233.0,0.1803]
[1718249849339,0.14477193,67247.0,67236.0,0.01]
[1718249849808,0.000452,67247.0,67236.0,0.01]
[1718249850053,0.07215996,67249.0,67244.0,0.1803]
[1718249850313,0.014,67247.0,67245.0,0.01803]
[1718249850552,0.014,67247.0,67246.0,0.01]
[1718249850769,0.014,67247.0,67246.0,0.3735]
[1718249851003,0.07215996,67270.0,67259.0,0.01]
[1718249851224,0.07215996,67270.0,67261.0,0.01]
[1718249851448,0.07215996,67270.0,67248.0,0.01]
[1718249851681,0.07215996,67270.0,67246.0,0.0832]
[1718249851682,0.000452,67255.0,67247.0,0.1803]
[1718249851938,0.07215996,67256.0,67245.0,0.014]
[1718249851939,0.000452,67246.0,67245.0,0.014]
[1718249852421,0.003452,67247.0,67236.0,0.001]
[1718249852649,0.000452,67247.0,67238.0,0.1803]
[1718249852867,0.07215996,67242.0,67238.0,0.1803]
[1718249853096,0.000452,67246.0,67238.0,0.1803]
[1718249853318,0.000452,67252.0,67245.0,0.1803]
[1718249853548,0.000452,67251.0,67245.0,0.1803]
[1718249853768,0.000452,67252.0,67245.0,0.19833]
[1718249853993,0.000452,67252.0,67245.0,0.1803]
[1718249854683,0.07215996,67256.0,67245.0,0.1803]
[1718249854684,0.000452,67254.0,67245.0,0.1803]
[1718249854922,0.07197057,67248.0,67243.0,0.1803]
[1718249855174,0.07197057,67248.0,67243.0,0.01803]
[1718249855391,0.07215996,67256.0,67245.0,0.001]
[1718249855392,0.000452,67251.0,67245.0,0.001]
[1718249855609,0.07215996,67249.0,67245.0,0.001]
[1718249855789,0.07261196,67249.0,67236.0,0.01]
[1718249856063,0.07261196,67249.0,67236.0,0.15431993]
[1718249856064,0.000452,67246.0,67236.0,0.15431993]
[1718249856286,0.07215996,67249.0,67232.0,0.2494]
[1718249856287,0.07215996,67241.0,67232.0,0.2494]
[1718249856501,0.000452,67238.0,67232.0,0.026843]
[1718249856729,0.000452,67239.0,67227.0,0.01903]
[1718249856938,0.07215996,67241.0,67227.0,0.01903]
[1718249856939,0.000452,67238.0,67227.0,0.01903]
[1718249857176,0.000452,67242.0,67227.0,0.01903]
[1718249857398,0.000452,67242.0,67236.0,0.001]
[1718249857818,0.000452,67239.0,67236.0,0.001]
[1718249858281,0.07215996,67256.0,67236.0,0.001]
[1718249858282,0.000452,67241.0,67236.0,0.001]
[1718249858497,0.07215996,67256.0,67236.0,0.001]
[1718249858498,0.001,67238.0,67236.0,0.001]
[1718249858936,0.001,67238.0,67236.0,0.002]
[1718249859158,0.001,67238.0,67236.0,0.001]
[1718249859365,0.000452,67248.0,67232.0,0.01]
[1718249859603,0.05,67264.0,67236.0,0.01]
[1718249859604,0.000452,67247.0,67236.0,0.01]
[1718249859813,0.000452,67245.0,67236.0,0.01]
[1718249860020,0.07215996,67255.0,67233.0,0.01543199]
[1718249860021,0.07261196,67244.0,67233.0,0.01543199]
[1718249860229,0.08215996,67255.0,67233.0,0.01543199]
[1718249860230,0.000452,67242.0,67233.0,0.0274832]
[1718249860371,0.000452,67244.0,67236.0,0.013]
[1718249860590,0.08215996,67255.0,67236.0,0.013]
[1718249860591,0.000452,67247.0,67236.0,0.023]
[1718249860807,0.000452,67249.0,67235.0,0.01]
[1718249860996,0.000452,67247.0,67236.0,0.01]
[1718249861161,0.000452,67249.0,67236.0,0.01]
[1718249861373,0.12337891,67248.0,67237.0,0.04037199]
[1718249861588,0.07215996,67247.0,67237.0,0.04037199]
[1718249861792,0.43295979,67242.0,67237.0,0.04037199]
[1718249862015,0.000452,67230.0,67211.0,0.04497529]
[1718249862241,0.000452,67238.0,67224.0,0.43295979]
[1718249862440,0.12385046,67237.0,67236.0,0.007]
[1718249862839,0.12385046,67237.0,67225.0,0.14431993]
[1718249862840,0.000452,67229.0,67225.0,0.14431993]
[1718249863149,0.000452,67228.0,67223.0,0.0809]
[1718249863388,0.000452,67227.0,67223.0,0.0809]
[1718249863599,0.000452,67227.0,67206.0,0.79865708]
[1718249863600,0.000452,67225.0,67215.0,0.0823]
[1718249863816,0.07215996,67227.0,67210.0,0.3348]
[1718249863817,0.000452,67222.0,67210.0,0.3348]
[1718249864028,0.000452,67218.0,67211.0,0.21191993]
[1718249864233,0.000452,67216.0,67211.0,0.0676]
[1718249864447,0.07215996,67227.0,67206.0,0.0818]
[1718249864448,0.000452,67214.0,67206.0,0.0818]
[1718249864659,0.07215996,67227.0,67206.0,0.0818]
[1718249864660,0.000452,67212.0,67206.0,0.0818]
[1718249864901,0.000452,67204.0,67200.0,0.0255]
[1718249865103,0.000452,67203.0,67200.0,0.0255]
[1718249865306,0.000452,67204.0,67200.0,0.0255]
[1718249865716,0.000452,67202.0,67200.0,0.0255]
[1718249866010,0.19607075,67202.0,67200.0,0.0255]
[1718249866426,0.12391079,67202.0,67200.0,0.0255]
[1718249867257,0.12891079,67202.0,67201.0,1.0090509]
[1718249867680,0.13791079,67202.0,67201.0,1.0080509]
[1718249867901,0.13745879,67202.0,67201.0,1.0080509]
[1718249868143,0.13745879,67202.0,67201.0,1.85962592]
[1718249868144,0.14845879,67202.0,67201.0,1.85962592]
[1718249868346,0.14845879,67202.0,67201.0,1.36180599]
[1718249868555,0.025,67202.0,67201.0,1.36180599]
[1718249869200,0.02482103,67202.0,67201.0,1.11240599]
[1718249869412,0.011,67202.0,67201.0,1.11240599]
[1718249869619,0.011,67202.0,67201.0,1.11140599]
[1718249869620,0.12343686,67202.0,67201.0,1.11140599]
[1718249869835,0.13743686,67202.0,67201.0,1.11240599]
[1718249870045,0.14243686,67202.0,67201.0,1.11240599]
[1718249870702,0.14243686,67202.0,67201.0,1.11326599]
[1718249870915,0.14243686,67202.0,67201.0,1.0099109]
[1718249870916,0.65998886,67202.0,67201.0,1.0099109]
[1718249871557,0.66001829,67202.0,67201.0,1.0099109]
[1718249872503,0.000452,67191.0,67190.0,0.42374581]
[1718249872923,0.12391829,67191.0,67190.0,0.42374581]
[1718249874006,0.13791829,67191.0,67190.0,0.42474581]
[1718249874209,0.12394443,67191.0,67190.0,0.42374581]
[1718249874674,0.12894443,67191.0,67190.0,0.4693875]
[1718249874897,0.13894443,67191.0,67190.0,0.42474581]
[1718249875113,0.28326436,67191.0,67190.0,0.42474581]
[1718249875347,0.88336436,67191.0,67190.0,0.42474581]
[1718249875575,0.81036436,67191.0,67190.0,0.42474581]
[1718249876015,0.82436436,67191.0,67190.0,0.42474581]
[1718249876216,0.99736436,67191.0,67190.0,0.42474581]
[1718249876426,0.87387193,67191.0,67190.0,0.42474581]
[1718249876632,0.99738252,67191.0,67190.0,0.42474581]
[1718249876859,0.89738252,67191.0,67190.0,0.42474581]
[1718249877067,0.87838252,67191.0,67190.0,0.42374581]
[1718249877295,0.316852,67189.0,67185.0,0.0136011]
[1718249877499,1.29373189,67189.0,67185.0,0.0136011]
[1718249877700,1.29373189,67189.0,67160.0,0.4356681]
[1718249877701,0.5874,67176.0,67160.0,0.4356681]
[1718249877916,0.07215996,67171.0,67160.0,0.2856681]
[1718249878140,0.26783052,67170.0,67160.0,0.00258616]
[1718249878351,0.07215996,67163.0,67156.0,0.4455062]
[1718249878635,0.73171993,67162.0,67156.0,0.4455062]
[1718249878827,0.5874,67162.0,67156.0,0.44809236]
[1718249879030,0.5874,67162.0,67156.0,0.4455062]
[1718249879257,0.34001914,67161.0,67156.0,0.4455062]
[1718249879471,0.07215996,67171.0,67156.0,0.4455062]
[1718249879472,0.07215996,67173.0,67157.0,0.04480924]
[1718249879672,0.07215996,67166.0,67156.0,0.4455062]
[1718249879883,0.014,67162.0,67160.0,0.00258616]
[1718249880099,0.014,67162.0,67161.0,0.00258616]
[1718249880320,0.07215996,67173.0,67159.0,0.00258616]
[1718249880524,0.014,67161.0,67158.0,0.00258616]
[1718249880696,0.014,67161.0,67160.0,0.00258616]
[1718249881787,0.05,67160.0,67156.0,0.4455062]
[1718249881953,0.07215996,67157.0,67156.0,0.4455062]
[1718249882213,0.34003108,67157.0,67156.0,0.4455062]
[1718249882427,0.40744492,67157.0,67156.0,0.4455062]
[1718249882883,0.40744492,67157.0,67125.0,0.06982121]
[1718249882884,0.6551,67145.0,67125.0,0.06982121]
[1718249883091,0.1564,67156.0,67125.0,0.06982121]
[1718249883092,0.66725996,67130.0,67125.0,0.06982121]
[1718249883316,0.6846738,67130.0,67125.0,0.06982121]
[1718249883527,0.98127941,67130.0,67125.0,0.06982121]
[1718249883763,1.03105516,67130.0,67125.0,0.06982121]
[1718249883988,0.99567941,67130.0,67125.0,0.06982121]
[1718249884233,0.9595855,67130.0,67125.0,0.06982121]
[1718249884466,1.02059934,67130.0,67125.0,0.06982121]
[1718249884713,1.21600838,67130.0,67125.0,0.06982121]
[1718249884979,1.1097855,67130.0,67125.0,0.06982121]
[1718249885198,1.12059934,67130.0,67125.0,0.06982121]
[1718249885399,0.85802554,67130.0,67125.0,0.06982121]
[1718249885618,0.90803933,67130.0,67125.0,0.06982121]
[1718249885830,1.08185317,67130.0,67125.0,0.06982121]
[1718249886038,1.09585317,67130.0,67125.0,0.06982121]
[1718249886257,0.93945317,67130.0,67125.0,0.06982121]
[1718249886671,0.96245317,67130.0,67125.0,0.06982121]
[1718249886899,0.94503933,67130.0,67125.0,0.06982121]
[1718249887142,0.95903933,67130.0,67125.0,0.06982121]
[1718249887363,0.99045317,67130.0,67125.0,0.06982121]
[1718249887567,0.94845317,67130.0,67125.0,0.06982121]
[1718249887796,0.85803933,67130.0,67125.0,0.06982121]
[1718249888004,0.74841993,67130.0,67125.0,0.06982121]
[1718249888226,0.15831993,67130.0,67125.0,0.06982121]
[1718249888452,0.014,67130.0,67129.0,0.00299506]
[1718249888688,0.014,67130.0,67129.0,0.0004089]
[1718249888918,0.014,67130.0,67129.0,0.00299506]
[1718249889128,0.028,67130.0,67129.0,0.0004089]
[1718249889568,0.15831993,67130.0,67129.0,0.0004089]
[1718249889784,0.90063377,67130.0,67129.0,0.0004089]
[1718249889996,0.78751384,67126.0,67125.0,0.06982121]
[1718249890206,1.28400914,67126.0,67125.0,0.06982121]
[1718249890416,1.33400914,67126.0,67125.0,0.06982121]
[1718249890638,1.40700914,67126.0,67125.0,0.06982121]
[1718249890942,1.40700914,67126.0,67120.0,0.00646504]
[1718249890943,0.32381384,67121.0,67120.0,0.00080163]
[1718249891168,0.32381384,67121.0,67088.0,0.33463425]
[1718249891169,0.13,67089.0,67088.0,0.33463425]
[1718249891356,0.46281294,67089.0,67088.0,0.0610294]
[1718249891653,0.46281294,67089.0,67088.0,0.04569324]
[1718249891654,0.54073136,67089.0,67088.0,0.04569324]
[1718249891885,0.65191384,67079.0,67078.0,0.01754616]
[1718249892099,0.91243534,67079.0,67078.0,0.01754616]
[1718249892308,1.00243534,67079.0,67078.0,0.01754616]
[1718249892543,0.87543534,67079.0,67078.0,0.01754616]
[1718249892747,0.77881993,67079.0,67078.0,0.01754616]
[1718249892961,0.75181993,67079.0,67078.0,0.01754616]
[1718249893421,0.14431993,67079.0,67078.0,0.01754616]
[1718249893642,0.05,67065.0,67061.0,0.00858]
[1718249893882,0.14431993,67064.0,67061.0,0.00858]
[1718249894543,0.04178369,67073.0,67063.0,0.00758616]
[1718249894739,0.028,67079.0,67076.0,0.00758616]
[1718249894889,0.14431993,67078.0,67071.0,0.00758616]
[1718249895299,0.14431993,67078.0,67061.0,0.00858]
[1718249895505,0.14431993,67078.0,67077.0,0.00758616]
[1718249895882,0.014,67079.0,67078.0,0.00758616]
[1718249896292,0.014,67079.0,67078.0,0.20238616]
[1718249897374,0.07215996,67097.0,67085.0,0.00758616]
[1718249897606,0.43295979,67093.0,67086.0,0.00758616]
[1718249897738,0.14431993,67092.0,67086.0,0.00758616]
[1718249898121,0.14431993,67092.0,67076.0,0.1889]
[1718249898122,0.004,67079.0,67078.0,0.00758616]
[1718249898337,0.015,67079.0,67078.0,0.00758616]
[1718249898771,0.004,67079.0,67078.0,0.02758616]
[1718249899190,0.004,67079.0,67078.0,0.34356471]
[1718249899425,0.004,67079.0,67078.0,0.34488959]
[1718249899631,0.004,67079.0,67078.0,0.34356471]
[1718249900086,0.014,67092.0,67091.0,0.00758616]
[1718249900547,0.014,67092.0,67091.0,0.02758616]
[1718249900797,0.014,67092.0,67091.0,0.60270609]
[1718249901991,0.43295979,67111.0,67091.0,0.60270609]
[1718249902228,0.43295979,67111.0,67110.0,0.02758616]
[1718249902438,0.07215996,67118.0,67117.0,0.00758616]
[1718249902647,0.07215996,67118.0,67108.0,0.01]
[1718249902648,0.14431993,67118.0,67111.0,0.00774342]
[1718249902884,0.14431993,67117.0,67113.0,0.00758616]
[1718249903109,0.06241384,67112.0,67111.0,0.00015726]
[1718249903333,0.49244498,67112.0,67111.0,0.00015726]
[1718249903560,0.50724498,67112.0,67111.0,0.00015726]
[1718249904012,0.01,67100.0,67091.0,0.00944616]
[1718249904220,0.05,67103.0,67091.0,0.00944616]
[1718249904221,0.023,67099.0,67091.0,0.00844616]
[1718249904460,0.023,67099.0,67057.0,0.149124]
[1718249904461,0.07215996,67092.0,67074.0,0.00758616]
[1718249904706,0.82701384,67066.0,67061.0,0.00858]
[1718249904955,0.65218975,67066.0,67061.0,0.00858]
[1718249905165,1.33423498,67066.0,67061.0,0.00858]
[1718249905367,1.56438546,67066.0,67061.0,0.00858]
[1718249905505,1.72088908,67066.0,67061.0,0.00858]
[1718249905711,1.6701386,67066.0,67061.0,0.00858]
[1718249905909,1.51739049,67066.0,67061.0,0.00858]
[1718249906136,0.9701386,67066.0,67061.0,0.00858]
[1718249906474,1.84229856,67066.0,67061.0,0.00858]
[1718249906672,1.9253007,67066.0,67061.0,0.00858]
[1718249906879,0.34559,67062.0,67061.0,0.00858]
[1718249907081,0.21881384,67055.0,67054.0,0.47088736]
[1718249907287,0.57435107,67055.0,67054.0,0.47088736]
[1718249907483,0.45095107,67055.0,67054.0,0.47088736]
[1718249907682,0.44095107,67055.0,67054.0,0.47088736]
[1718249908071,0.39095107,67055.0,67054.0,0.47088736]
[1718249908275,0.39095107,67055.0,67054.0,0.47188736]
[1718249908276,0.39107417,67055.0,67054.0,0.47188736]
[1718249908536,0.40507417,67055.0,67054.0,0.47188736]
[1718249908664,0.40507417,67055.0,67054.0,0.47288736]
[1718249908665,0.41907417,67055.0,67054.0,0.47288736]
[1718249908871,0.41907417,67055.0,67054.0,0.47188736]
[1718249908872,0.28207417,67055.0,67054.0,0.47188736]
[1718249909319,0.29607417,67055.0,67054.0,0.47288736]
[1718249909535,0.30607417,67055.0,67054.0,0.47288736]
[1718249909742,0.34202281,67055.0,67054.0,0.47188736]
[1718249909949,0.34602281,67055.0,67054.0,0.47188736]
[1718249910155,0.29602281,67055.0,67054.0,0.47188736]
[1718249910396,0.31902281,67055.0,67054.0,0.47188736]
[1718249910610,0.28202281,67055.0,67054.0,0.47188736]
[1718249910810,0.28207417,67055.0,67054.0,0.47847352]
[1718249911026,0.28207417,67055.0,67054.0,0.47088736]
[1718249911247,0.17131993,67055.0,67054.0,0.47188736]
[1718249911464,0.27806294,67055.0,67054.0,0.47088736]
[1718249911686,0.27806294,67055.0,67054.0,0.45088736]
[1718249911897,0.27806294,67055.0,67054.0,0.45188736]
[1718249911898,0.29506294,67055.0,67054.0,0.45188736]
[1718249912098,0.29206294,67055.0,67054.0,0.45088736]
[1718249912565,0.29406294,67055.0,67054.0,0.45188736]
[1718249913023,0.14974301,67055.0,67054.0,0.45188736]
[1718249913232,0.13574301,67055.0,67054.0,0.45947352]
[1718249913453,0.13574301,67055.0,67054.0,0.45188736]
[1718249913665,0.14974301,67055.0,67054.0,0.45947352]
[1718249913876,0.13774301,67055.0,67054.0,0.45847352]
[1718249914109,0.12374301,67055.0,67054.0,0.45847352]
[1718249914306,0.13674301,67055.0,67054.0,0.45947352]
[1718249914504,0.15074301,67055.0,67054.0,0.45847352]
[1718249914711,0.13774301,67055.0,67054.0,0.45847352]
[1718249914915,0.13674301,67055.0,67054.0,0.45947352]
[1718249915330,0.15074301,67055.0,67054.0,0.46847352]
[1718249915540,0.16373046,67055.0,67054.0,0.46947352]
[1718249915751,0.16373046,67055.0,67054.0,0.45947352]
[1718249915966,0.16373046,67055.0,67054.0,0.46847352]
[1718249915967,0.13773046,67055.0,67054.0,0.46847352]
[1718249916180,0.13773046,67055.0,67054.0,0.47847352]
[1718249916401,0.014,67055.0,67054.0,0.81809345]
[1718249916611,0.26804315,67055.0,67054.0,0.45088736]
[1718249916848,0.15522676,67055.0,67054.0,0.45088736]
[1718249917063,0.15522676,67055.0,67054.0,0.45847352]
[1718249917262,0.15522676,67055.0,67054.0,0.45577362]
[1718249917483,0.13672322,67055.0,67054.0,0.45677362]
[1718249917705,0.13772322,67055.0,67054.0,0.45577362]
[1718249918118,0.12372322,67055.0,67054.0,0.45577362]
[1718249918361,0.013,67055.0,67054.0,0.45677362]
[1718249918569,0.014,67055.0,67054.0,0.45577362]
[1718249919130,0.027,67055.0,67054.0,0.45677362]
[1718249919365,0.15071991,67055.0,67054.0,0.45677362]
[1718249919606,0.15071991,67055.0,67054.0,0.91227362]
[1718249919938,0.013,67055.0,67054.0,1.20907362]
[1718249920141,0.013,67055.0,67054.0,1.10907362]
[1718249920331,0.027,67055.0,67054.0,1.10907362]
[1718249920540,0.027,67055.0,67054.0,1.08907362]
[1718249920947,0.15071428,67055.0,67054.0,1.08907362]
[1718249921184,0.29503421,67055.0,67054.0,0.44918746]
[1718249921413,0.49061536,67055.0,67054.0,0.44918746]
[1718249921635,0.5430292,67055.0,67054.0,0.44918746]
[1718249921838,0.5660292,67055.0,67054.0,0.44918746]
[1718249922251,0.6660292,67055.0,67054.0,0.44918746]
[1718249923567,0.5660292,67055.0,67054.0,0.44918746]
[1718249924452,1.2877652,67055.0,67054.0,0.44918746]
[1718249924660,1.33556202,67055.0,67054.0,0.44918746]
[1718249924865,1.33556202,67055.0,67054.0,0.44818746]
[1718249924866,1.33656202,67055.0,67054.0,0.44818746]
[1718249925095,1.29060289,67055.0,67054.0,0.44818746]
[1718249925313,0.97627202,67055.0,67054.0,0.44818746]
[1718249925517,0.91631289,67055.0,67054.0,0.44818746]
[1718249925942,1.03031289,67055.0,67054.0,0.44818746]
[1718249926167,1.01631289,67055.0,67054.0,0.44818746]
[1718249926545,1.06950289,67055.0,67054.0,0.44818746]
[1718249926947,1.31950289,67055.0,67054.0,0.44818746]
[1718249927152,1.35146202,67055.0,67054.0,0.44818746]
[1718249927373,1.02816659,67055.0,67054.0,0.44818746]
[1718249927603,1.75595516,67055.0,67054.0,0.44818746]
[1718249927820,1.56676516,67055.0,67054.0,0.44818746]
[1718249928048,1.38076516,67055.0,67054.0,0.44818746]
[1718249928266,1.14895132,67055.0,67054.0,0.44818746]
[1718249928484,1.13495132,67055.0,67054.0,0.44818746]
[1718249928919,1.15136516,67055.0,67054.0,0.44818746]
[1718249929144,0.22520362,67055.0,67054.0,0.44818746]
[1718249929383,0.5486143,67055.0,67054.0,0.44818746]
[1718249929599,0.48173061,67055.0,67054.0,0.44818746]
[1718249930230,0.46773061,67055.0,67054.0,0.44818746]
[1718249930456,0.52740861,67055.0,67054.0,0.44818746]
[1718249930918,0.39708868,67055.0,67054.0,0.44818746]
[1718249931199,0.19744227,67055.0,67054.0,0.47577362]
[1718249931431,0.21144227,67055.0,67054.0,1.15947362]
[1718249931650,0.01749858,67061.0,67060.0,0.02758616]
[1718249931856,0.6186062,67079.0,67078.0,0.00758616]
[1718249932116,0.43295979,67079.0,67078.0,0.00758616]
[1718249932319,0.01750477,67084.0,67083.0,0.00758616]
[1718249932543,0.43295979,67097.0,67078.0,0.6683]
[1718249932544,0.07215996,67095.0,67086.0,0.00758616]
[1718249932763,0.14431993,67094.0,67089.0,0.00758616]
[1718249932969,0.14431993,67094.0,67041.0,0.01786591]
[1718249932970,0.05,67076.0,67064.0,0.00758616]
[1718249933183,0.07215996,67065.0,67060.0,0.00758616]
[1718249933396,0.07215996,67065.0,67057.0,0.00758616]
[1718249933610,0.07215996,67058.0,67055.0,0.00758616]
[1718249933824,0.07215996,67058.0,67050.0,0.000805]
[1718249934036,0.14431993,67055.0,67054.0,0.44918746]
[1718249934239,0.16831993,67055.0,67054.0,0.44918746]
[1718249934447,0.31831993,67055.0,67054.0,0.44918746]
[1718249934678,0.30673377,67055.0,67054.0,0.44818746]
[1718249935357,0.37973377,67055.0,67054.0,0.44818746]
[1718249936029,0.30673377,67055.0,67054.0,0.44818746]
[1718249936235,0.30673377,67055.0,67054.0,0.44904746]
[1718249936451,0.30673377,67055.0,67054.0,0.45004746]
[1718249936668,0.38067977,67055.0,67054.0,0.44904746]
[1718249937101,0.58067977,67055.0,67054.0,0.45004746]
[1718249937306,0.73707977,67055.0,67054.0,0.45004746]
[1718249937513,0.94375959,67055.0,67054.0,0.44904746]
[1718249937719,0.92626977,67055.0,67054.0,0.44904746]
[1718249938145,1.25419985,67055.0,67054.0,0.45004746]
[1718249938253,1.15419985,67055.0,67054.0,0.45004746]
[1718249938464,1.15319985,67055.0,67054.0,0.44904746]
[1718249938662,0.90760985,67055.0,67054.0,0.44904746]
[1718249938870,0.91960985,67055.0,67054.0,0.45004746]
[1718249939071,0.89012034,67055.0,67054.0,0.44904746]
[1718249939292,0.89112034,67055.0,67054.0,0.45004746]
[1718249939515,0.90312034,67055.0,67054.0,0.45104746]
[1718249940389,0.5677065,67055.0,67054.0,0.45104746]
[1718249940589,0.6277065,67055.0,67054.0,0.45104746]
[1718249940797,1.18012034,67055.0,67054.0,0.45104746]
[1718249941021,1.18012034,67055.0,67054.0,0.35104746]
[1718249941236,1.1777065,67055.0,67054.0,0.35104746]
[1718249941466,1.30388818,67055.0,67054.0,0.35104746]
[1718249942802,1.40388818,67055.0,67054.0,0.35104746]
[1718249943019,1.56028818,67055.0,67054.0,0.35104746]
[1718249944347,1.54947818,67055.0,67054.0,0.35104746]
[1718249944582,1.64947818,67055.0,67054.0,0.35104746]
[1718249944794,1.30388818,67055.0,67054.0,0.35104746]
[1718249945433,1.40388818,67055.0,67054.0,0.35104746]
[1718249945649,1.4038931,67055.0,67054.0,0.35104746]
[1718249946078,1.3038931,67055.0,67054.0,0.35104746]
[1718249946507,1.4038931,67055.0,67054.0,0.35104746]
[1718249946733,1.28012034,67055.0,67054.0,0.35104746]
[1718249946943,1.40389237,67055.0,67054.0,0.35104746]
[1718249947359,1.64948237,67055.0,67054.0,0.35104746]
[1718249947997,2.08159637,67055.0,67054.0,0.35104746]
[1718249948207,1.89240637,67055.0,67054.0,0.35104746]
[1718249948442,1.30389237,67055.0,67054.0,0.35104746]
[1718249948645,0.80389237,67055.0,67054.0,0.35104746]
[1718249948866,0.79089237,67055.0,67054.0,0.34904746]
[1718249949280,0.81589237,67055.0,67054.0,0.35104746]
[1718249949483,1.31589237,67055.0,67054.0,0.35104746]
[1718249949702,1.29089237,67055.0,67054.0,0.34904746]
[1718249949915,1.16712034,67055.0,67054.0,0.34904746]
[1718249950144,1.41589406,67055.0,67054.0,0.35104746]
[1718249950609,1.49108406,67055.0,67054.0,0.35004746]
[1718249950821,1.39108406,67055.0,67054.0,0.35004746]
[1718249951264,1.49108406,67055.0,67054.0,0.35004746]
[1718249951927,1.48008406,67055.0,67054.0,0.34484746]
[1718249952144,1.48008406,67055.0,67054.0,0.34584746]
[1718249952360,1.49408406,67055.0,67054.0,0.34584746]
[1718249952762,1.48008406,67055.0,67054.0,0.34484746]
[1718249952972,1.49108406,67055.0,67054.0,0.34584746]
[1718249953184,1.49408406,67055.0,67054.0,0.34584746]
[1718249953603,1.49108406,67055.0,67054.0,0.34584746]
[1718249953806,1.49108406,67055.0,67054.0,0.34484746]
[1718249954013,1.49108406,67055.0,67054.0,0.34584746]
[1718249954014,1.50508406,67055.0,67054.0,0.34584746]
[1718249955305,1.49108406,67055.0,67054.0,0.34484746]
[1718249955517,1.50208406,67055.0,67054.0,0.34584746]
[1718249955720,1.49408406,67055.0,67054.0,0.34584746]
[1718249956169,1.49108406,67055.0,67054.0,0.34584746]
[1718249956375,1.38008406,67055.0,67054.0,0.34484746]
[1718249956563,1.48008406,67055.0,67054.0,0.34484746]
[1718249956772,1.49108406,67055.0,67054.0,0.34584746]
[1718249956906,1.64748406,67055.0,67054.0,0.32916493]
[1718249957119,2.14752914,67055.0,67054.0,0.32816493]
[1718249957450,2.52131823,67055.0,67054.0,0.32816493]
[1718249957631,1.93650734,67055.0,67054.0,0.32816493]
[1718249958040,1.55462268,67055.0,67054.0,0.32816493]
[1718249958249,1.75453549,67055.0,67054.0,0.22816493]